[Event "1st Caplin Menchik Memorial 2022"]
[Site "London"]
[Date "2022.06.25"]
[Round "8.3"]
[White "Hunt, Harriet V"]
[Black "Arakhamia-Grant, Ketevan"]
[Result "1/2-1/2"]
[ECO "B28"]
[WhiteElo "2395"]
[BlackElo "2354"]
[Annotator "TA"]
[PlyCount "105"]
[EventDate "2022.06.21"]
[EventType "tourn"]
[EventCountry "ENG"]
[SourceTitle "playchess.com"]
[Source "ChessBase"]
[SourceQuality "1"]
[TimeControl "5400+30"]

{[%evp 10,105,47,21,20,21,25,17,25,20,17,16,26,10,9,-15,0,0,7,8,38,17,25,24,13,16,54,41,54,24,53,47,97,70,104,129,160,151,151,0,0,-4,0,-32,74,80,89,105,93,110,98,106,105,33,42,8,54,36,120,75,129,122,100,125,107,112,123,105,171,157,210,146,227,202,297,226,368,206,299,280,255,237,266,8,8,8,8,8,8,8,8,8,8,8,8,0,0,0]} 1. e4 {[%emt 0:00:04]} c5 {[%emt 0:00:07]} 2. Nf3 {[%emt 0:00:11]} a6 {[%emt 0:00:22]} 3. c4 {[%emt 0:05:15]} Nc6 {[%emt 0:00:14]} 4. d4 {[%emt 0:00:28]} cxd4 {[%emt 0:00:06]} 5. Nxd4 {[%emt 0:00:05]} e5 {[%emt 0:00:14]} 6. Nc2 {[%emt 0:06:17]} Bc5 {[%emt 0:06:11] The main line 6...Bc5 scores better than 6...Nf6. B28: Sicilian: 2 Nf3 a6 (O'Kelly Variation).} 7. Nc3 {[%emt 0:01:43]} Nge7 {[%emt 0:04:51]} 8. Bd3 {[%emt 0:05:09]} O-O {[%emt 0:00:36]} 9. O-O {[%emt 0:00:07]} d6 {[%emt 0:00:10]} 10. Rb1 {[%emt 0:01:31]} Be6 {[%emt 0:01:06] [#]} 11. a3 $146 {[%emt 0:07:20]} ({Predecessor:} 11. b4 Ba7 12. Nd5 Nd4 13. Be3 Nec6 14. b5 axb5 15. cxb5 Bxd5 16. exd5 Ne7 17. Bxd4 exd4 {0-1 (34) McPhillips,J (2199)-Foisor,O (2397) Hastings 2013}) 11... Rc8 {[%emt 0:04:40]} 12. Ne3 {[%emt 0:02:05]} (12. Nd5 {is more complex.} Nd4 13. b4 Ba7 14. Nxd4 Bxd4 15. Bg5) 12... Nd4 {[%emt 0:21:27]} 13. Ned5 {[%emt 0:17:00]} Bxd5 {[%emt 0:14:04]} 14. cxd5 {[%emt 0:14:22]} b5 {[%emt 0:04:16]} 15. Bd2 {[%emt 0:02:09]} Qd7 {[%emt 0:03:05]} 16. b4 {[%emt 0:02:36]} Bb6 {[%emt 0:00:46]} 17. a4 {[%emt 0:04:40]} f5 {[%emt 0:02:26]} 18. exf5 {[%emt 0:01:07]} Nexf5 {[%emt 0:00:19]} 19. axb5 {[%emt 0:02:56]} axb5 {[%emt 0:00:41]} 20. Kh1 {[%emt 0:03:29]} ({Much worse is} 20. Qh5 g6 21. Qg4 Bd8 $11) 20... Rf6 {[%emt 0:10:05]} (20... Ra8 $14) 21. Qh5 {[%emt 0:04:15]} g6 {[%emt 0:02:47]} 22. Qh3 {[%emt 0:01:28]} Qb7 {[%emt 0:03:23]} 23. Ne4 $1 {[%emt 0:02:51]} Rff8 {[%emt 0:02:00] [#]} 24. Ng5 $2 {[%emt 0:09:30]} ({White must play} 24. g4 $1 $16 {[%cal Rg4f5]}) 24... Bd8 $1 $11 {[%emt 0:08:37]} 25. Be4 {[%emt 0:00:22]} ({But not} 25. Ne6 Nxe6 26. dxe6 e4 $15) 25... Rc4 {[%emt 0:03:27]} 26. f3 {[%emt 0:02:31]} h6 {[%emt 0:05:03]} (26... Bxg5 $15 {stays ahead.} 27. Bxg5 Ng7) 27. Ne6 $16 {[%emt 0:00:44]} Nxe6 {[%emt 0:02:03]} 28. dxe6 {[%emt 0:00:08]} d5 {[%emt 0:00:18]} 29. Bxf5 {[%emt 0:00:30]} Rxf5 {[%emt 0:00:25]} 30. Qxh6 {[%emt 0:01:27]} Qg7 {[%emt 0:00:07] [#]} 31. g4 {[%emt 0:00:16]} (31. Ra1 $1 $16) 31... Rf8 $1 $14 {[%emt 0:01:26]} 32. Rbe1 {[%emt 0:01:22]} Bf6 {[%emt 0:00:32]} (32... Qf6 $11) 33. Qe3 {[%emt 0:01:04]} g5 {[%emt 0:00:27]} (33... e4 $14) 34. Qb6 {[%emt 0:00:46]} Rc2 {[%emt 0:00:15]} (34... Qe7 $142) 35. Re2 {[%emt 0:00:06]} Qe7 {[%emt 0:00:31]} 36. Qxb5 {[%emt 0:00:24] Strongly threatening Qd3. White is much more active.} Qxe6 {[%emt 0:00:10]} 37. Qd3 {[%emt 0:00:03]} Rc7 {[%emt 0:00:16]} 38. Rfe1 {[%emt 0:01:23]} Qd6 {[%emt 0:00:49]} (38... Rcf7 $16 {is a better defense.}) 39. b5 {[%emt 0:00:17]} d4 {[%emt 0:00:52]} (39... Qe6 $16 40. Bxg5 e4) 40. Qe4 {[%emt 0:00:43]} Rb8 {[%emt 0:00:30]} (40... Rd7 $16 41. Rb1 Qd5) 41. Rb1 {[%emt 0:00:11]} ({Don't play} 41. Qg6+ $6 Rg7 42. Qd3 Qd5 $16) 41... Kg7 {[%emt 0:00:20]} (41... Qd7 $142 42. b6 Rc6) 42. Kg2 {[%emt 0:00:21]} Rcb7 {[%emt 0:00:30]} (42... d3 {might work better.} 43. Rf2 Rcb7) 43. h4 {[%emt 0:00:31]} (43. Rc1 $142) 43... Rxb5 {[%emt 0:00:22]} (43... gxh4 $142 44. g5 Be7) 44. Rxb5 $18 {[%emt 0:00:08] Really sharp!} Rxb5 {[%emt 0:00:04]} 45. hxg5 {[%emt 0:00:20]} Bd8 {[%emt 0:00:12]} 46. f4 $2 {[%emt 0:00:39]} (46. Qf5 $18 {[%cal Og5g6] And now g6! would win.} Qd5 47. Kg1) 46... exf4 $11 {[%emt 0:00:53] The position is equal.} 47. Bxf4 {[%emt 0:00:22]} Qd5 {[%emt 0:00:56]} 48. Be5+ {[%emt 0:00:32]} Kg8 {[%emt 0:00:27]} 49. Bxd4 {[%emt 0:01:28] Threatens to win with g6.} Qxe4+ {[%emt 0:00:06]} 50. Rxe4 {[%emt 0:00:04] Intending g6 and mate.} Bxg5 {[%emt 0:00:13]} 51. Kf3 {[%emt 0:01:39]} Rb4 {[%emt 0:01:35]} 52. Ke2 {[%emt 0:00:44]} Bf6 {[%emt 0:00:22]} 53. Kd3 {[%emt 0:00:17] Black escapes into a draw.  Weighted Error Value: White=0.35/Black=0.24 (precise)} 1/2-1/2

[Event "1st Caplin Menchik Memorial 2022"]
[Site "London"]
[Date "2022.06.25"]
[Round "8.4"]
[White "Vidic, Teja"]
[Black "Schulze, Lara"]
[Result "0-1"]
[ECO "B69"]
[WhiteElo "2168"]
[BlackElo "2303"]
[Annotator "TA"]
[PlyCount "92"]
[EventDate "2022.06.21"]
[EventType "tourn"]
[EventCountry "ENG"]
[SourceTitle "playchess.com"]
[Source "ChessBase"]
[SourceQuality "1"]
[TimeControl "5400+30"]

{[%evp 22,92,51,34,57,45,47,0,21,23,23,24,25,4,48,49,58,60,87,100,104,68,75,75,75,58,62,60,90,68,94,89,84,-45,-62,-58,-61,-47,-44,-91,-83,-123,-118,-145,-145,-143,-153,-162,-175,-164,-172,-171,-162,-190,-179,-431,-406,-779,-754,-847,-832,-791,-715,-872,-810,-1093,-1077,-961,-761,-677,-687,-29990,-29991]} 1. e4 {[%emt 0:00:02]} c5 {[%emt 0:00:15]} 2. Nf3 {[%emt 0:00:05]} Nc6 {[%emt 0:00:05]} 3. d4 {[%emt 0:00:08]} cxd4 {[%emt 0:00:06]} 4. Nxd4 {[%emt 0:00:05]} Nf6 {[%emt 0:00:08]} 5. Nc3 {[%emt 0:00:08]} d6 {[%emt 0:00:06]} 6. Bg5 {[%emt 0:00:18]} e6 {[%emt 0:00:08]} 7. Qd2 {[%emt 0:00:04]} a6 {[%emt 0:00:06]} 8. O-O-O {[%emt 0:00:18]} Bd7 {[%emt 0:00:13]} 9. f4 {[%emt 0:00:54][%cal Bf2f4,Bf4f5][%mdl 32]} Be7 {[%emt 0:00:17]} 10. Nf3 {[%emt 0:00:34]} b5 {[%emt 0:00:16]} 11. Bxf6 {[%emt 0:00:09]} gxf6 {[%emt 0:00:09]} 12. f5 {[%emt 0:00:04]} O-O {[%emt 0:00:20] B69: Sicilian: Richter-Rauzer: 7...a6 8 0-0-0 Bd7 9 f4 Be7 10 Nf3 b5 11 Bxf6.} 13. g4 {[%emt 0:08:47]} Kh8 {[%emt 0:00:26]} 14. Ne2 {[%emt 0:03:17]} (14. h4 $14) 14... Qa5 {[%emt 0:05:50] The position is equal.} 15. Qxa5 {[%emt 0:11:01]} Nxa5 {[%emt 0:00:23]} 16. Nf4 {[%emt 0:00:49]} Rg8 {[%emt 0:14:38]} 17. Rg1 {[%emt 0:03:26][%cal Bh1g1,Bg1g3,Bg3e3,Be3e2][%mdl 32] [#]} Nc6 $146 {[%emt 0:05:00]} ({Predecessor:} 17... Bc6 18. fxe6 fxe6 19. Nd4 Bxe4 20. Ndxe6 Rac8 21. Bd3 Bf3 22. Be2 Be4 23. Bd3 Bf3 {½-½ (75) Plaskett,H (2410)-Formanek,E (2410) New York 1979}) 18. h3 {[%emt 0:04:51]} Rae8 {[%emt 0:04:19]} 19. Kb1 {[%emt 0:04:50]} Ne5 {[%emt 0:02:44]} 20. Nd4 {[%emt 0:03:20][%cal Rf5e6]} Bd8 {[%emt 0:01:09]} 21. Nh5 {[%emt 0:04:43]} Bc8 {[%emt 0:07:00]} 22. Rg3 {[%emt 0:03:24]} Bb7 {[%emt 0:02:36]} 23. Bg2 {[%emt 0:01:50]} Nd7 {[%emt 0:03:29]} 24. Re3 {[%emt 0:12:06]} Bb6 {[%emt 0:05:11] [#] Hoping for ...e5.} 25. Re2 {[%emt 0:02:57]} Re7 {[%emt 0:05:55]} 26. e5 {[%emt 0:10:06]} fxe5 {[%emt 0:24:39]} 27. Nc6 {[%emt 0:01:38]} (27. Bxb7 $16 exd4 28. Bxa6) 27... Bxc6 $15 {[%emt 0:03:37]} 28. Bxc6 {[%emt 0:00:32] aiming for f6.} Nb8 $1 {[%emt 0:00:35]} 29. Bh1 {[%emt 0:09:06]} Bc7 {[%emt 0:02:07]} 30. Nf6 {[%emt 0:01:59]} (30. b3 $1 $15 {is more appropriate.}) 30... Rd8 $17 {[%emt 0:00:59] Black continues to play with concentration.} 31. c3 {[%emt 0:04:49] [#]} d5 $1 {[%emt 0:02:07]} 32. fxe6 {[%emt 0:00:40]} fxe6 {[%emt 0:00:12]} 33. g5 {[%emt 0:00:47]} e4 {[%emt 0:01:57]} 34. a4 {[%emt 0:00:28]} Nc6 {[%emt 0:02:43]} ({And not} 34... bxa4 35. c4 $11) 35. axb5 {[%emt 0:00:05]} axb5 {[%emt 0:00:04]} 36. h4 {[%emt 0:00:26]} Ne5 {[%emt 0:02:02]} 37. Rg1 {[%emt 0:03:42]} Rf8 {[%emt 0:01:35]} 38. b3 $2 {[%emt 0:00:26]} (38. Bxe4 {was necessary.} dxe4 39. Rxe4) 38... Bb6 $19 {[%emt 0:01:20]} 39. Rg3 {[%emt 0:00:26]} (39. Rc1 $142 Ra8 40. Ra2 Rxa2 41. Kxa2) 39... Ra7 {[%emt 0:01:26] Strongly threatening ...Rfa8.} 40. Ra2 {[%emt 0:01:56]} Rxa2 {[%emt 0:00:26]} 41. Kxa2 {[%emt 0:00:04]} e3 {[%emt 0:00:17]} 42. Rg2 {[%emt 0:00:50]} Nd3 {[%emt 0:01:06] White must now prevent ...b4.} 43. Kb1 {[%emt 0:03:05]} Nf4 {[%emt 0:01:10]} 44. Kc2 {[%emt 0:00:43]} Nxg2 {[%emt 0:00:28]} 45. Bxg2 {[%emt 0:00:03]} Ra8 {[%emt 0:00:28] ( -> ...e2)} 46. Kd3 {[%emt 0:00:30]} Ra2 {[%emt 0:00:24] Weighted Error Value: White=0.74/Black=0.16 (very precise)} 0-1

[Event "1st Caplin Menchik Memorial 2022"]
[Site "London"]
[Date "2022.06.25"]
[Round "8.5"]
[White "Koubova, Anna Marie"]
[Black "Dworakowska, Joanna"]
[Result "1/2-1/2"]
[ECO "E73"]
[WhiteElo "2115"]
[BlackElo "2321"]
[Annotator "TA"]
[PlyCount "112"]
[EventDate "2022.06.21"]
[EventType "tourn"]
[EventCountry "ENG"]
[SourceTitle "playchess.com"]
[Source "ChessBase"]
[SourceQuality "1"]
[TimeControl "5400+30"]

{[%evp 16,112,78,68,64,24,45,34,43,-26,-8,-39,0,0,0,0,61,-53,-60,-59,-54,-34,-29,-10,-17,-81,-44,-39,-43,-61,-49,-170,-33,-27,-32,-84,-82,-83,-80,-83,-25,-29,-21,-92,-25,-24,-24,-19,-19,-27,-13,-13,0,0,0,0,0,-15,0,0,0,0,1,0,0,0,0,0,0,0,0,0,0,0,0,0,0,0,0,0,0,0,0,0,0,0,0,0,14,0,0,0,0,0,0,0,14,0,0]} 1. d4 {[%emt 0:00:17]} Nf6 {[%emt 0:00:03]} 2. c4 {[%emt 0:00:39]} g6 {[%emt 0:00:07]} 3. Nc3 {[%emt 0:00:22]} Bg7 {[%emt 0:00:08]} 4. e4 {[%emt 0:00:10]} d6 {[%emt 0:00:02]} 5. Be2 {[%emt 0:00:21]} O-O {[%emt 0:00:16]} 6. Bg5 {[%emt 0:00:23]} h6 {[%emt 0:05:39]} 7. Be3 {[%emt 0:00:16]} Nbd7 {[%emt 0:00:47]} 8. Qd2 {[%emt 0:00:51]} Kh7 {[%emt 0:00:23]} 9. h4 {[%emt 0:03:58]} c5 {[%emt 0:01:21] E73: King's Indian: Averbakh Variation without 6...c5.} 10. d5 {[%emt 0:00:44] White is more active.} b5 {[%emt 0:10:14]} 11. cxb5 {[%emt 0:04:37]} Ne5 {[%emt 0:03:53] White is slightly better.} 12. f3 {[%emt 0:09:09]} (12. Bf4 $14) 12... a6 $11 {[%emt 0:06:31]} 13. h5 {[%emt 0:06:33]} (13. bxa6 {is interesting.} Qa5 14. Nb5 Rxa6 15. g4) 13... g5 {[%emt 0:09:05]} (13... Nxh5 $5 {[%cal Rh5g3]} 14. Rh4 Rh8 $11) 14. Nh3 {[%emt 0:04:03][%cal Oe3g5]} axb5 {[%emt 0:03:25] [#]} 15. Nxb5 $146 {[%emt 0:06:02]} ({Predecessor:} 15. Bxg5 b4 16. Nd1 e6 17. f4 Ned7 18. Ne3 exd5 19. exd5 Nb6 20. Bh4 Re8 21. Bd3+ {1-0 (44) Gellrich,P-Hoerstmann,M (2280) Germany 1998}) 15... Nfd7 {[%emt 0:07:29]} (15... Ba6 $11) 16. g4 {[%emt 0:17:19]} (16. a4 $14) 16... Nb6 $15 {[%emt 0:04:10][%mdl 1024] aiming for ...Nbc4. Black has compensation.} 17. Qc2 {[%emt 0:02:22] Prevents Nbc4.} Bd7 {[%emt 0:04:56]} 18. O-O {[%emt 0:01:34]} Kg8 {[%emt 0:06:55]} 19. a4 {[%emt 0:02:45]} Qb8 {[%emt 0:00:41]} 20. Ra2 {[%emt 0:03:10] [#]} (20. Kg2 $11) 20... Rxa4 $1 {[%emt 0:07:02]} 21. Rxa4 {[%emt 0:09:53]} Nxa4 {[%emt 0:00:05]} 22. Qxa4 {[%emt 0:00:06] Strongly threatening Qa6.} c4 $1 {[%emt 0:00:08]} 23. b3 {[%emt 0:11:17]} Qxb5 {[%emt 0:07:20]} ({Black should try} 23... Bxb5 $19 24. Qa5 Qb7) 24. Qxb5 {[%emt 0:00:46]} Bxb5 {[%emt 0:00:02]} 25. Rc1 {[%emt 0:00:49] [#]} (25. bxc4 $15 Bxc4 26. Kf2) 25... Nxf3+ $1 $17 {[%emt 0:09:55]} 26. Kg2 {[%emt 0:06:01]} ({Don't blunder} 26. Bxf3 $2 cxb3 27. Rb1 b2 $19) 26... Ne5 {[%emt 0:04:51][%cal Oe5g4] Threatens to win with ...Nxg4!} 27. bxc4 {[%emt 0:00:11] [#]} Bd7 {[%emt 0:00:53]} (27... Ba6 $1 $17 28. Kf1 Rb8) 28. Nf2 $11 {[%emt 0:00:35]} Ra8 {[%emt 0:00:58]} 29. Rc2 {[%emt 0:01:00]} (29. Kf1 $1 $11 {was the only way to keep the balance.}) 29... Bf6 {[%emt 0:01:23]} (29... Ra3 $17 30. Bc1 Ra1) 30. c5 {[%emt 0:01:34]} dxc5 $1 {[%emt 0:00:44]} 31. Bxc5 {[%emt 0:00:21]} Rc8 {[%emt 0:00:31]} 32. Rc1 {[%emt 0:01:05]} Kf8 {[%emt 0:01:42]} 33. Be3 {[%emt 0:01:09] The position is equal.} Rxc1 {[%emt 0:00:51]} 34. Bxc1 {[%emt 0:00:11]} Ke8 {[%emt 0:00:18]} 35. Kg3 {[%emt 0:01:10]} Ba4 {[%emt 0:00:41]} 36. Ba3 {[%emt 0:01:28]} Kd7 {[%emt 0:01:19]} 37. Bb4 {[%emt 0:01:23]} Kc7 {[%emt 0:00:41]} 38. Nd1 {[%emt 0:01:24]} Nd3 {[%emt 0:02:24]} 39. Bxd3 {[%emt 0:02:16]} Bxd1 {[%emt 0:00:11][%mdl 4096] Endgame KBB-KBB} 40. Kh3 {[%emt 0:00:24]} Ba4 {[%emt 0:00:35]} 41. Be2 {[%emt 0:00:45]} Kd7 {[%emt 0:00:32]} 42. Kg2 {[%emt 0:00:12]} Be5 {[%emt 0:01:09]} 43. Kf3 {[%emt 0:00:19]} Ke8 {[%emt 0:00:42]} 44. Ke3 {[%emt 0:00:22]} Kd7 {[%emt 0:00:32]} 45. Bc5 {[%emt 0:01:05]} f6 {[%emt 0:00:37]} 46. Bb4 {[%emt 0:00:12]} Bf4+ {[%emt 0:00:18]} 47. Kd4 {[%emt 0:00:45]} Be5+ {[%emt 0:00:31]} 48. Ke3 {[%emt 0:00:45]} Bf4+ {[%emt 0:00:27]} 49. Kf3 {[%emt 0:00:06]} Ke8 {[%emt 0:00:39]} 50. Bc5 {[%emt 0:00:42]} Bc2 {[%emt 0:00:31]} 51. Bb5+ {[%emt 0:00:34]} Kf7 {[%emt 0:00:14]} 52. Bc4 {[%emt 0:00:28]} Bd1+ {[%emt 0:00:22]} 53. Be2 {[%emt 0:00:06]} Bc2 {[%emt 0:00:31]} 54. Bc4 {[%emt 0:00:08]} Kf8 {[%emt 0:00:48]} 55. Bb5 {[%emt 0:00:19]} Bb1 {[%emt 0:00:26]} 56. Bc4 {[%emt 0:00:23]} Bc2 {[%emt 0:00:08] Weighted Error Value: White=0.23 (precise) /Black=0.16 (very precise)} 1/2-1/2

[Event "1st Caplin Menchik Memorial 2022"]
[Site "London"]
[Date "2022.06.26"]
[Round "9.1"]
[White "Dworakowska, Joanna"]
[Black "Yao, Lan"]
[Result "1-0"]
[ECO "C00"]
[WhiteElo "2321"]
[BlackElo "2276"]
[Annotator "TA"]
[PlyCount "169"]
[EventDate "2022.06.21"]
[EventType "tourn"]
[EventCountry "ENG"]
[SourceTitle "playchess.com"]
[Source "ChessBase"]
[SourceQuality "1"]
[TimeControl "5400+30"]

{[%evp 17,169,-16,21,7,18,-43,-35,-49,-33,-42,-38,-37,-42,-40,-41,-33,-14,-8,-14,-25,-8,-40,-45,-48,-51,-56,-40,-58,-22,-19,-18,-23,-24,-14,-23,-23,0,0,9,8,23,21,18,24,24,24,24,24,39,34,22,0,21,0,37,13,13,4,7,7,31,36,20,0,37,14,173,169,216,216,202,0,142,0,197,208,197,212,200,193,387,381,353,144,392,392,428,457,448,447,435,428,4141,925,877,632,877,566,3059,2957,2581,2255,12768,12768,12760,12753,12753,12746,29971,8251,1130,920,29973,12746,12746,12746,12746,12746,12746,12746,12746,12739,12724,11999,12845,12703,29966,29967,29967,29965,29964,29964,29959,29954,12789,11245,6505,5893,5500,5420,5197,5190,5190,5190,5183,5183,5175,5145,2996,2948,1291,1361,29971,29972]} 1. Nf3 {[%emt 0:00:03]} Nf6 {[%emt 0:00:05]} 2. g3 {[%emt 0:00:07]} e6 {[%emt 0:00:22]} 3. Bg2 {[%emt 0:00:25]} d5 {[%emt 0:00:29]} 4. O-O {[%emt 0:00:25]} Be7 {[%emt 0:00:26]} 5. d3 {[%emt 0:00:26]} O-O {[%emt 0:02:29]} 6. Nbd2 {[%emt 0:00:50]} c5 {[%emt 0:01:05]} 7. e4 {[%emt 0:02:52]} Nc6 {[%emt 0:00:24]} 8. Re1 {[%emt 0:07:59]} Qc7 {[%emt 0:00:35]} 9. c3 {[%emt 0:02:31]} b5 {[%emt 0:05:35]} 10. Qe2 {[%emt 0:12:38] C00: French: Unusual White 2nd moves.} Bb7 {[%emt 0:05:29]} 11. e5 {[%emt 0:01:16]} (11. exd5 $11 exd5 12. Nb3) 11... Nd7 $1 $15 {[%emt 0:00:07]} 12. Nf1 {[%emt 0:03:47] Black is slightly better.} d4 {[%emt 0:06:00]} 13. Bf4 {[%emt 0:09:29] [#]} dxc3 $146 {[%emt 0:05:51]} ({Predecessor:} 13... Nb6 14. Rac1 dxc3 15. bxc3 Nd5 16. Bd2 Rfd8 17. h4 h6 18. N1h2 Bf8 19. Ng4 Nde7 {1-0 (57) Petkevich,J (2376)-Agrest,R (2056) Stockholm 2013}) 14. bxc3 {[%emt 0:00:03]} b4 {[%emt 0:00:33]} 15. cxb4 {[%emt 0:05:22]} Nxb4 {[%emt 0:02:53]} 16. Ne3 {[%emt 0:02:18]} Nd5 {[%emt 0:02:39]} 17. Nxd5 {[%emt 0:07:17]} Bxd5 {[%emt 0:00:06]} 18. h4 {[%emt 0:04:09]} Qc6 {[%emt 0:09:54]} 19. h5 {[%emt 0:05:28]} Rab8 {[%emt 0:09:18]} 20. Rec1 {[%emt 0:00:52]} Rb4 {[%emt 0:01:07]} 21. Rc2 {[%emt 0:04:26]} Rfb8 {[%emt 0:07:41]} 22. Rac1 {[%emt 0:00:40]} Rb1 {[%emt 0:07:38]} 23. Nd4 {[%emt 0:03:27]} Rxc1+ {[%emt 0:00:27]} 24. Rxc1 {[%emt 0:03:08]} Qb7 {[%emt 0:00:44]} 25. Bxd5 {[%emt 0:00:55]} Qxd5 {[%emt 0:00:05]} 26. Nb3 {[%emt 0:01:47][%cal Bd4b3,Bb3a5,Ba5c6][%mdl 32]} Rd8 {[%emt 0:05:11]} 27. Na5 {[%emt 0:08:52]} h6 {[%emt 0:08:28]} 28. Qe4 {[%emt 0:04:48]} Nb8 {[%emt 0:08:39]} 29. Qxd5 {[%emt 0:01:42]} (29. Nb7 {is interesting.} Qxd3 30. Nxc5 Qd5 31. Be3) 29... Rxd5 {[%emt 0:00:12]} 30. Rb1 {[%emt 0:00:28]} Nd7 {[%emt 0:01:31]} 31. Nc6 {[%emt 0:00:23][%csl LRa7,LRe7]} Bf8 {[%emt 0:00:21]} 32. Rb3 {[%emt 0:03:33]} g5 {[%emt 0:02:07]} 33. hxg6 {[%emt 0:00:41]} fxg6 {[%emt 0:00:04]} 34. g4 {[%emt 0:01:17]} g5 {[%emt 0:01:35]} 35. Bg3 {[%emt 0:00:05]} Kh7 {[%emt 0:01:31]} 36. Kf1 {[%emt 0:00:16] Black should prevent Rb7.} Bg7 {[%emt 0:01:24]} 37. Rb7 {[%emt 0:01:58] Black must now prevent Ke2.} Rxd3 {[%emt 0:00:54]} 38. Ke2 {[%emt 0:00:50]} Rd5 {[%emt 0:01:11]} 39. Ne7 {[%emt 0:01:09]} Rd4 {[%emt 0:00:05]} 40. Nc6 {[%emt 0:00:05]} Rd5 {[%emt 0:00:03]} 41. Rxa7 {[%emt 0:00:37] a4 is the strong threat.} h5 $2 {[%emt 0:01:19]} (41... c4 $11) 42. gxh5 $18 {[%emt 0:00:41]} Kh6 {[%emt 0:00:17]} (42... c4 $142 43. Nb4 Rb5) 43. Ne7 {[%emt 0:01:03]} Rd4 {[%emt 0:00:37]} 44. Nc6 {[%emt 0:00:07]} Rd5 {[%emt 0:00:03][%cal Rd7e5]} 45. Ne7 {[%emt 0:00:44]} (45. f4 $16 {[%cal Of4f5]} Bf8 46. f5 (46. Nd8 Kxh5 47. Nxe6 Kg4 $16)) 45... Rd4 {[%emt 0:00:03] [#]} 46. Ra6 $1 {[%emt 0:00:06]} Kxh5 {[%emt 0:01:38]} 47. Rxe6 {[%emt 0:00:07] Hoping for Nf5.} Ra4 {[%emt 0:02:10]} 48. Nf5 {[%emt 0:00:38]} Rxa2+ $2 {[%emt 0:00:18]} (48... Bf8 49. a3 Ra8) 49. Kf3 {[%emt 0:00:19][%cal Rf5g7]} Bf8 {[%emt 0:02:18] [#]} 50. Rc6 {[%emt 0:00:10]} (50. Re8 $1 $18 {is the precise move to win. aiming for e6.} Ra3+ 51. Kg2) 50... Ra3+ $2 {[%emt 0:00:41]} (50... g4+ $16 {was worth a try.} 51. Ke4 Ra4+ 52. Kd5 Kg5) 51. Kg2 {[%emt 0:00:46]} Ra8 {[%emt 0:00:36]} 52. e6 {[%emt 0:00:15]} Nf6 {[%emt 0:00:34]} 53. e7 {[%emt 0:00:11]} Bxe7 {[%emt 0:00:30]} 54. Nxe7 {[%emt 0:00:02]} Ne4 {[%emt 0:00:22]} (54... Rf8 $142 55. Nf5 Kg6) 55. Nf5 {[%emt 0:00:21] White threatens Ng7+ and mate.} Kg4 {[%emt 0:00:38]} 56. Ne3+ {[%emt 0:00:20]} Kh5 {[%emt 0:00:03]} 57. Nd5 {[%emt 0:00:53] Threatens to win with Nf6+.} Ra3 {[%emt 0:00:58]} 58. Nf6+ {[%emt 0:01:49]} Nxf6 {[%emt 0:00:04]} 59. Rxf6 {[%emt 0:00:03][%mdl 4096] Endgame KRB-KR} c4 {[%emt 0:00:10]} 60. Rc6 {[%emt 0:00:14]} Ra4 {[%emt 0:01:09]} 61. Be5 {[%emt 0:00:17]} Kg4 {[%emt 0:00:33]} 62. Bc3 {[%emt 0:00:41]} Kf5 {[%emt 0:00:32]} 63. Kf3 {[%emt 0:00:04]} (63. Rc5+ $142 Kf4 64. Bd2+ Ke4 65. Bxg5 Kd4 66. Rc7 Kd3 67. Bf6 Ra6 68. Be5) 63... g4+ {[%emt 0:00:16]} 64. Ke3 {[%emt 0:00:16]} Kg5 {[%emt 0:00:29]} 65. Rc5+ {[%emt 0:01:04]} (65. Ke4 $142 Ra2 66. Bd4 Ra5 67. Be3+ Kh4 68. Rh6+ Rh5 69. Rxh5+ Kxh5 70. Kd4) 65... Kh4 {[%emt 0:00:19]} 66. Be5 {[%emt 0:01:41]} Kh3 {[%emt 0:00:46]} 67. Bg3 {[%emt 0:00:34]} Ra3+ {[%emt 0:00:42]} 68. Kd4 {[%emt 0:00:10]} Kg2 {[%emt 0:00:31]} 69. Rxc4 {[%emt 0:00:10]} Ra8 {[%emt 0:00:27]} 70. Ke4 {[%emt 0:00:16]} Rf8 {[%emt 0:00:34]} 71. Rc5 {[%emt 0:00:14] Threatening mate with Rg5.} Rh8 {[%emt 0:00:18]} 72. Kf4 {[%emt 0:00:14]} Kh3 {[%emt 0:00:04]} 73. Rf5 {[%emt 0:00:15]} Rh7 {[%emt 0:00:20]} 74. Rf6 {[%emt 0:00:13]} Rh5 {[%emt 0:00:56]} 75. Rf7 {[%emt 0:00:37]} Rh8 {[%emt 0:00:18]} 76. Kg5 {[%emt 0:00:12]} Rg8+ {[%emt 0:00:17]} 77. Kf5 {[%emt 0:00:07]} Rh8 {[%emt 0:00:08]} 78. Rg7 {[%emt 0:00:09]} Rh5+ {[%emt 0:00:18]} 79. Kg6 {[%emt 0:00:50]} Ra5 {[%emt 0:00:10]} 80. Rh7+ {[%emt 0:00:30]} Kg2 {[%emt 0:00:04]} 81. Rh5 {[%emt 0:00:19]} Ra8 {[%emt 0:01:44]} 82. Kg5 {[%emt 0:01:40]} Kf3 {[%emt 0:00:14]} 83. Rh6 {[%emt 0:00:10]} Ra5+ {[%emt 0:00:58]} 84. Kh4 {[%emt 0:00:15]} Rf5 {[%emt 0:00:17] Inhibits Rf6.} 85. Re6 {[%emt 0:00:14] Weighted Error Value: White=0.17 (very precise) /Black=0.29 (precise)} 1-0